bitfinex/quotes_ETHUSD_20241022
["timestamp","ask_amount","ask_price","bid_price","bid_amount"]
[1729596651836,6.20637511,2638.6,2638.5,2.77081728]
[1729596652035,3.79003,2638.5,2638.4,2.77081728]
[1729596652232,5.44641511,2638.5,2638.4,2.77081728]
[1729596652478,6.44605562,2638.5,2638.4,2.77081728]
[1729596652777,6.44605562,2638.5,2638.1,2.77081728]
[1729596652778,3.79046,2638.2,2638.1,2.77081728]
[1729596652980,5.44684511,2638.2,2638.1,2.77081728]
[1729596654233,3.79046,2638.2,2638.1,2.77081728]
[1729596654536,5.44684511,2638.2,2638.1,2.77081728]
[1729596654700,1.65638511,2638.2,2638.1,2.77081728]
[1729596654899,3.7901,2638.5,2638.2,0.8089]
[1729596655199,3.79031,2638.3,2638.2,0.8089]
[1729596655902,5.44669511,2638.3,2638.2,0.8089]
[1729596656105,5.44669511,2638.3,2638.0,4.10402791]
[1729596656433,3.7901,2638.5,2638.0,4.10541576]
[1729596656434,5.44658511,2638.4,2638.0,4.10541576]
[1729596656643,5.44658511,2638.4,2638.3,2.77235145]
[1729596656991,5.44658511,2638.4,2638.3,2.93309201]
[1729596657192,1.65638511,2638.4,2638.3,2.93309201]
[1729596657388,1.65638511,2638.5,2638.3,0.99174056]
[1729596657611,5.44641511,2638.5,2638.3,0.99174056]
[1729596657804,5.44628511,2638.6,2638.3,1.91107423]
[1729596658037,7.57912,2638.9,2638.5,2.77258735]
[1729596658256,0.785,2639.0,2638.6,3.59888735]
[1729596658553,3.7894,2639.0,2638.9,2.77258735]
[1729596658705,3.7894,2639.0,2638.7,3.27441576]
[1729596658911,3.7894,2639.0,2638.9,0.16031621]
[1729596659111,3.7894,2639.0,2638.8,0.73652049]
[1729596659449,1.65638511,2639.1,2638.9,2.76992609]
[1729596659755,5.44550511,2639.2,2639.0,2.76992609]
[1729596659921,5.44556511,2639.1,2639.0,2.93017236]
[1729596660248,3.78918,2639.1,2639.0,2.93017236]
[1729596660753,3.78912,2639.2,2639.0,3.69464911]
[1729596660928,3.7888,2639.4,2639.1,2.76990693]
[1729596661112,3.78888,2639.3,2639.2,2.76990693]
[1729596661315,3.7888,2639.4,2639.2,0.1601064]
[1729596661520,3.7888,2639.4,2639.2,2.9293048]
[1729596661744,3.78888,2639.3,2639.2,2.7691984]
[1729596662251,3.78888,2639.3,2639.1,2.7691984]
[1729596662551,3.78902,2639.2,2639.1,2.7691984]
[1729596662752,3.78902,2639.2,2639.0,2.7691984]
[1729596663211,3.78902,2639.2,2638.9,2.7691984]
[1729596663411,3.78902,2639.2,2638.8,3.5968984]
[1729596663657,3.78902,2639.2,2638.8,5.18579418]
[1729596663855,3.78888,2639.3,2638.9,2.7691984]
[1729596664055,7.57786,2639.3,2639.0,2.76743951]
[1729596664233,3.78888,2639.3,2639.0,2.76743951]
[1729596664424,3.9168084,2639.5,2639.0,2.76743951]
[1729596664641,3.9168084,2639.5,2639.2,0.7813]
[1729596664839,3.78882,2639.4,2639.2,0.7813]
[1729596665254,3.78882,2639.4,2639.0,3.54873951]
[1729596665627,3.78882,2639.4,2639.3,0.28238188]
[1729596665827,3.78882,2639.4,2639.1,0.28238188]
[1729596666049,3.78882,2639.4,2639.3,0.28238188]
[1729596666459,3.78882,2639.4,2639.0,3.54873951]
[1729596666624,3.78898,2639.3,2639.1,4.0]
[1729596666832,3.78902,2639.2,2639.1,4.0]
[1729596667172,4.60402,2639.2,2639.1,4.28240247]
[1729596667530,4.60402,2639.2,2639.1,4.56483024]
[1729596667946,4.60402,2639.2,2639.1,0.28240247]
[1729596668970,3.78902,2639.2,2639.1,0.28240247]
[1729596669656,3.78902,2639.2,2639.1,4.28240247]
[1729596671478,3.78902,2639.2,2639.1,4.56476681]
[1729596671935,3.78902,2639.2,2639.1,0.56476681]
[1729596672280,3.78902,2639.2,2639.1,0.72455545]
[1729596673899,3.78898,2639.3,2639.1,0.72455545]
[1729596674069,3.78898,2639.3,2639.2,0.28236434]
[1729596674267,3.78898,2639.3,2639.2,0.44208306]
[1729596674801,3.9167684,2639.5,2639.2,0.44208306]
[1729596675001,3.78875,2639.4,2639.3,0.28236434]
[1729596675358,3.78875,2639.4,2639.3,4.44201313]
[1729596676801,3.9167084,2639.5,2639.3,4.44201313]
[1729596677100,3.78873,2639.4,2639.3,4.15964879]
[1729596677297,3.78873,2639.4,2639.3,5.2616554]
[1729596678091,3.78873,2639.4,2639.3,4.4417554]
[1729596678269,3.9167184,2639.5,2639.3,4.4417554]
[1729596678469,3.9167184,2639.5,2639.4,0.28205934]
[1729596678795,3.9167184,2639.5,2639.4,4.44151824]
[1729596679211,3.9167184,2639.5,2639.4,4.1594589]
[1729596679703,0.1281084,2639.5,2639.4,4.57540479]
[1729596679901,3.78853,2639.6,2639.4,4.85732302]
[1729596680087,3.78853,2639.6,2639.5,0.28191823]
[1729596680403,3.78853,2639.6,2639.5,4.44129338]
[1729596681268,3.78796,2640.0,2639.5,8.22987338]
[1729596681492,4.61849,2640.2,2639.8,0.8168]
[1729596681808,4.61847,2640.2,2639.8,4.8168]
[1729596682005,4.61847,2640.2,2639.9,0.15892025]
[1729596682184,4.61847,2640.2,2639.9,1.06348434]
[1729596682378,4.61847,2640.2,2639.9,1.34499483]
[1729596682379,5.4419735,2640.2,2639.9,1.34499483]
[1729596682597,3.78767,2640.2,2639.9,5.34499483]
[1729596682795,3.78767,2640.2,2640.0,0.28148112]
[1729596683103,3.78767,2640.2,2640.1,0.15871129]
[1729596683311,5.4418935,2640.2,2640.1,0.69318694]
[1729596683483,5.4418935,2640.2,2640.1,0.15871129]
[1729596683682,5.4418935,2640.2,2640.1,4.0]
[1729596683881,5.4418935,2640.2,2640.1,4.15870668]
[1729596684268,3.78759,2640.2,2640.1,4.15870668]
[1729596684672,3.78745,2640.3,2640.1,4.15870668]
[1729596684869,3.78745,2640.3,2640.1,4.66503376]
[1729596685101,3.7875,2640.3,2640.1,4.66503376]
[1729596685810,3.78739,2640.4,2640.1,4.66503376]
[1729596686010,3.78746,2640.3,2640.1,4.66503376]
[1729596686212,3.78746,2640.3,2640.2,0.46650338]
[1729596686422,3.78746,2640.3,2640.2,4.46650338]
[1729596686572,3.78746,2640.3,2640.2,4.62502027]
[1729596687418,3.78737,2640.4,2640.2,4.62502027]
[1729596687908,3.78744,2640.3,2640.2,4.62502027]
[1729596689674,3.78744,2640.3,2640.2,4.15851689]
[1729596691002,8.2448663,2640.3,2640.2,4.15851689]
[1729596691397,11.2582663,2640.3,2640.2,4.15851689]
[1729596691746,11.2582663,2640.3,2640.2,4.0]
[1729596692306,3.78851,2639.6,2639.4,1.5]
[1729596692661,3.78823,2639.8,2639.4,1.5]
[1729596692955,3.78792,2640.0,2639.5,0.90910028]
[1729596693118,3.78792,2640.0,2639.6,0.61977603]
[1729596693452,3.78792,2640.0,2639.6,0.7784263]
[1729596693649,3.78769,2640.2,2639.7,0.7505]
[1729596693650,7.57541,2640.2,2639.7,0.7505]
[1729596693806,3.78769,2640.2,2639.7,4.53878]
[1729596694012,3.7879,2640.0,2639.8,0.15851047]
[1729596694310,3.78781,2640.1,2639.7,0.7505]
[1729596694518,3.78781,2640.1,2639.9,0.15839446]
[1729596694705,3.78781,2640.1,2639.7,0.7505]
[1729596694916,3.78781,2640.1,2640.0,0.15832457]
[1729596695121,3.78784,2640.1,2639.7,0.7505]
[1729596695319,3.78784,2640.1,2640.0,0.15832457]
[1729596695520,3.78784,2640.1,2639.9,4.0]
[1729596695736,3.78784,2640.1,2640.0,0.15832457]
[1729596696125,3.78758,2640.3,2640.0,0.15832457]
[1729596696347,3.7877,2640.2,2640.0,4.15832457]
[1729596697636,3.78773,2640.1,2640.0,4.15832457]
[1729596698775,4.60413,2640.1,2640.0,4.15832457]
[1729596698910,5.81296563,2640.1,2640.0,4.15832457]
[1729596699113,5.81296563,2640.1,2640.0,4.0]
[1729596699313,5.81296563,2640.1,2640.0,4.15823235]
[1729596700362,5.81296563,2640.1,2639.4,1.5]
[1729596700363,3.78859,2639.5,2639.4,1.5]
[1729596700563,12.60022318,2639.5,2639.4,1.5]
[1729596701058,11.2526163,2639.5,2639.4,1.5]
[1729596702354,10.4852163,2639.5,2639.4,1.5]
[1729596702559,3.78783,2640.1,2639.5,0.7946]
[1729596702768,3.78783,2640.1,2639.6,1.008325]
[1729596702973,3.78761,2640.2,2639.8,0.7946]
[1729596703332,3.78761,2640.2,2639.9,0.15302782]
[1729596703649,3.7875,2640.3,2639.9,0.52352172]
[1729596703851,7.57507,2640.3,2639.9,0.52352172]
[1729596704187,3.7875,2640.3,2639.9,0.52352172]
[1729596704343,3.78724,2640.5,2639.9,4.31150172]
[1729596704549,3.78747,2640.3,2639.9,0.52352172]
[1729596704869,3.78747,2640.3,2640.0,0.40754329]
[1729596705074,3.78747,2640.3,2640.1,0.15315092]
[1729596705369,3.78734,2640.4,2640.1,0.15315092]
[1729596705562,3.78746,2640.3,2640.1,0.15315092]
[1729596705870,3.7873,2640.4,2640.1,4.15315092]
[1729596706068,3.0,2641.0,2640.3,0.81]
[1729596706069,3.78696,2640.7,2640.3,0.81]
[1729596706410,3.78696,2640.7,2640.4,1.65294131]
[1729596706411,3.7871,2640.6,2640.4,1.65294131]
[1729596706577,3.78716,2640.5,2640.4,1.65294131]
[1729596706762,3.78716,2640.5,2640.4,1.99738967]
[1729596707369,7.5733,2640.9,2640.4,5.99738967]
[1729596707572,3.78683,2640.8,2640.4,5.99738967]
[1729596707876,3.7869,2640.7,2640.4,5.99738967]
[1729596708448,3.7869,2640.7,2640.4,5.65294131]
[1729596708760,3.78716,2640.5,2640.4,5.65294131]
[1729596709382,7.57391,2640.7,2640.4,5.65294131]
[1729596710263,3.78712,2640.6,2640.4,5.65294131]
[1729596710973,3.78716,2640.5,2640.4,5.65294131]
[1729596711514,4.57436,2640.5,2640.4,5.65294131]
[1729596712325,4.57436,2640.5,2640.4,1.65294131]
[1729596712456,4.57436,2640.5,2640.4,1.5]
[1729596712656,5.410499,2640.5,2640.4,1.5]
[1729596712860,9.1071253,2640.5,2640.4,1.5]
[1729596713603,5.410499,2640.5,2640.4,1.5]
[1729596720023,5.410499,2640.5,2639.6,0.8206]
[1729596720024,3.7883,2639.7,2639.6,0.8206]
[1729596720224,3.7883,2639.7,2639.5,4.96968826]
[1729596720528,3.78845,2639.6,2639.5,4.96968826]
[1729596726594,0.977117,2639.6,2639.5,4.96968826]
[1729596726832,3.7883,2639.7,2639.5,4.96968826]
[1729596727009,3.78845,2639.6,2639.5,4.96968826]
[1729596731928,3.78845,2639.6,2639.5,5.12348914]
[1729596732345,3.78845,2639.6,2639.5,5.91488914]
[1729596733131,3.78845,2639.6,2639.5,5.12348914]
[1729596734083,9.0186513,2639.6,2639.5,5.12348914]
[1729596734225,12.0186513,2639.6,2639.5,3.62348914]
[1729596734429,3.78974,2638.7,2638.6,0.59321315]
[1729596734728,12.5686513,2639.6,2638.8,0.7914]
[1729596734729,0.757675,2639.6,2638.8,0.7914]
[1729596734944,0.7759,2639.7,2639.0,0.7914]
[1729596734945,3.7884,2639.7,2639.0,0.7914]
[1729596735145,3.7884,2639.7,2639.1,3.78916]
[1729596735357,7.57682,2639.7,2639.1,3.93817384]
[1729596735558,3.7884,2639.7,2639.1,4.0139492]
[1729596735753,3.7884,2639.7,2639.3,0.7914]
[1729596736139,3.7882,2639.8,2639.4,0.14880407]
[1729596736374,3.7879,2640.0,2639.5,0.7742]
[1729596736615,3.7879,2640.0,2639.5,0.92293416]
[1729596736915,3.7879,2640.0,2639.5,4.71149416]
[1729596737121,3.7879,2640.0,2639.6,0.4787258]
[1729596737718,3.78803,2639.9,2639.7,0.14858051]
[1729596737878,3.7879,2640.0,2639.7,0.14858051]
[1729596738078,3.7879,2640.0,2639.5,4.63851387]
[1729596738304,3.7879,2640.0,2639.6,0.14861812]
[1729596738615,3.78763,2640.2,2639.6,0.14861812]
[1729596738616,3.78823,2639.8,2639.6,0.14861812]
[1729596739417,3.7883,2639.7,2639.6,0.14861812]
[1729596739781,3.78823,2639.8,2639.2,2.2641]
[1729596739782,3.78846,2639.6,2639.2,2.2641]
[1729596740325,3.78862,2639.5,2639.2,1.5]
[1729596740543,3.78888,2639.3,2639.2,1.5]
[1729596740907,3.78875,2639.4,2639.2,1.5]
[1729596741113,7.57757,2639.4,2639.2,1.5]
[1729596741407,3.78875,2639.4,2639.2,1.5]
[1729596742093,3.78875,2639.4,2639.3,0.14869872]
[1729596742292,3.78875,2639.4,2639.2,1.5]
[1729596742494,3.78875,2639.4,2639.3,0.14869872]
[1729596742803,3.78875,2639.4,2639.2,1.5]
[1729596743005,3.78875,2639.4,2639.3,0.14869872]
[1729596743208,3.78855,2639.6,2639.3,0.14869872]
[1729596743411,3.0,2639.7,2639.3,0.68502416]
[1729596743645,3.78825,2639.8,2639.5,0.774]
[1729596744131,3.78838,2639.7,2639.5,0.774]
[1729596744291,3.78838,2639.7,2639.6,0.14848898]
[1729596747817,3.78838,2639.7,2639.2,2.3137]
[1729596748023,3.78838,2639.7,2639.6,0.14848898]
[1729596748346,3.78848,2639.6,2639.2,2.3137]
[1729596748819,3.78859,2639.5,2639.2,2.3137]
[1729596750313,3.78848,2639.6,2639.2,2.3137]
[1729596750518,3.78848,2639.6,2639.2,3.5728564]
[1729596750755,7.57705,2639.6,2639.2,3.5728564]
[1729596751250,3.78848,2639.6,2639.2,3.5728564]
[1729596751406,3.78862,2639.5,2639.2,3.5728564]
[1729596752140,3.78888,2639.3,2639.2,1.5]
[1729596753658,3.68888,2639.3,2639.2,1.5]
[1729596754770,4.49838,2639.3,2639.2,1.5]
[1729596756920,3.78974,2638.7,2638.6,0.59321315]
[1729596757456,3.78974,2638.7,2638.6,0.74258132]
[1729596759360,4.624234,2638.7,2638.6,0.74258132]
[1729596759561,8.3208603,2638.7,2638.6,0.14936817]
[1729596759765,3.79031,2638.3,2638.2,0.59340779]
[1729596761130,7.58045,2638.4,2638.2,0.59340779]
[1729596761328,3.79031,2638.3,2638.2,0.59340779]
[1729596761942,3.79031,2638.3,2638.2,0.74305584]
[1729596764633,3.79031,2638.3,2638.2,0.59340779]
[1729596764853,7.62956,2638.3,2638.2,0.59340779]
[1729596765048,3.79046,2638.2,2638.1,1.5]
[1729596765333,3.79105,2637.8,2637.5,0.7995]
[1729596765562,7.58167,2638.0,2637.5,0.7995]
[1729596765743,3.79112,2637.8,2637.5,1.39301149]
[1729596765948,3.79112,2637.8,2637.5,1.95877628]
[1729596768076,7.58172,2638.0,2637.5,1.95877628]
[1729596768577,3.79092,2637.9,2637.5,1.95877628]
[1729596771476,3.79118,2637.8,2637.5,1.95877628]
[1729596771680,3.79119,2637.7,2637.5,1.95877628]
[1729596772188,3.79118,2637.8,2637.5,1.39301149]
[1729596772343,3.79132,2637.6,2637.5,1.39301149]
[1729596772679,3.79132,2637.6,2637.5,0.59351149]
[1729596773597,3.79161,2637.4,2637.3,1.5]
[1729596773754,4.58281,2637.4,2637.3,1.5]
[1729596774143,5.420239,2637.4,2637.3,1.5]
[1729596774343,5.420239,2637.4,2637.2,0.59362334]
[1729596774344,9.1168653,2637.4,2637.2,0.59362334]
[1729596774579,3.79249,2636.8,2636.6,0.756]
[1729596774757,3.79249,2636.8,2636.7,0.5936598]
[1729596776658,3.79233,2636.9,2636.7,0.5936598]
[1729596776846,3.79213,2637.1,2636.7,0.5936598]
[1729596777051,3.79213,2637.1,2636.8,0.98281026]
[1729596779189,3.79219,2637.0,2636.8,0.98281026]
[1729596779952,3.79233,2636.9,2636.8,0.15241026]
[1729596781157,4.59849,2637.0,2636.7,0.5936598]
[1729596781385,3.79247,2636.8,2636.7,0.5936598]
[1729596782654,3.79233,2636.9,2636.7,0.5936598]
[1729596782882,3.79213,2637.1,2636.7,0.5936598]
[1729596783069,3.79212,2637.1,2636.7,0.5936598]
[1729596783391,3.7922,2637.0,2636.7,0.5936598]
[1729596783595,3.79212,2637.1,2636.7,0.5936598]
[1729596784797,7.58425,2637.1,2636.7,0.5936598]
[1729596784982,3.79222,2637.0,2636.7,0.5936598]
[1729596785389,3.79212,2637.1,2636.7,0.5936598]
[1729596785594,3.79183,2637.3,2636.8,0.7732]
[1729596786177,3.79204,2637.1,2636.8,0.7732]
[1729596787009,3.79204,2637.1,2636.8,4.7732]
[1729596787512,3.7923,2637.0,2636.8,4.7732]
[1729596788205,3.79233,2636.9,2636.8,4.0]
[1729596788410,3.79247,2636.8,2636.7,0.5936598]
[1729596788616,3.7922,2637.0,2636.7,4.5936598]
[1729596788784,3.79247,2636.8,2636.7,4.5936598]
[1729596789623,3.79215,2637.1,2636.7,0.5936598]
[1729596790338,7.5843,2637.1,2636.7,0.5936598]
[1729596790832,3.79215,2637.1,2636.7,0.5936598]
[1729596790984,3.79215,2637.1,2636.7,4.5936598]
[1729596791388,3.79215,2637.1,2636.7,6.16889799]
[1729596791588,3.79215,2637.1,2636.7,9.96149799]
[1729596792124,3.79215,2637.1,2636.8,0.15248423]
[1729596792942,3.8005,2637.5,2636.9,4.57392]
[1729596792943,3.79161,2637.4,2636.9,4.57392]
[1729596793141,7.58332,2637.4,2636.9,4.57399]
[1729596793363,7.58332,2637.4,2637.0,0.99465418]
[1729596793656,3.0,2637.5,2637.0,0.15234413]
[1729596793860,11.2946663,2637.1,2637.0,0.15234413]
[1729596794026,3.7927,2636.7,2636.3,3.53435894]
[1729596794231,3.0,2636.8,2636.4,4.0]
[1729596794557,3.79221,2637.0,2636.5,0.8025]
[1729596794764,3.79243,2636.9,2636.5,0.8025]
[1729596794910,3.79243,2636.9,2636.5,3.55515894]
[1729596795440,3.79221,2637.0,2636.5,0.8025]
[1729596795441,3.7925,2636.8,2636.5,0.8025]
[1729596796792,7.58507,2636.8,2636.5,0.8025]
[1729596797117,3.7925,2636.8,2636.5,0.8025]
[1729596797467,7.58505,2636.8,2636.5,3.55515894]
[1729596797830,3.79271,2636.7,2636.5,3.55515894]
[1729596798373,3.79276,2636.6,2636.5,3.55515894]
[1729596798512,3.79276,2636.6,2636.5,0.8025]
[1729596798971,7.58506,2636.8,2636.5,0.8025]
[1729596799130,3.79262,2636.7,2636.5,0.8025]
[1729596799342,3.79262,2636.7,2636.5,3.55515894]
[1729596799670,3.79262,2636.7,2636.3,0.59375411]
[1729596799671,3.7929,2636.5,2636.4,2.75265894]
[1729596800134,3.79276,2636.6,2636.3,3.34641305]
[1729596800135,3.79305,2636.4,2636.3,3.34641305]
[1729596800333,3.79305,2636.4,2636.3,4.59375411]
[1729596801066,3.79305,2636.4,2636.3,7.34641305]
[1729596801223,3.79305,2636.4,2636.3,4.59375411]
[1729596801662,3.79305,2636.4,2636.3,0.59375411]
[1729596802473,3.79305,2636.4,2636.2,5.22999541]
[1729596802635,7.58623,2636.4,2636.2,7.98265435]
[1729596802834,7.5862,2636.4,2636.2,7.98265435]
[1729596803016,3.0,2636.8,2636.3,0.7887]
[1729596803220,3.0,2636.8,2636.3,3.55308717]
[1729596803465,3.793,2636.5,2636.3,3.55308717]
[1729596803765,3.0,2636.8,2636.3,3.55308717]
[1729596803975,3.79305,2636.4,2636.3,3.55308717]
[1729596804270,3.79305,2636.4,2636.3,0.7887]
[1729596805262,3.79319,2636.3,2636.2,7.99438258]
[1729596805866,3.79319,2636.3,2636.2,7.99576358]
[1729596806177,3.79307,2636.4,2636.2,7.99576358]
[1729596806680,3.79307,2636.4,2636.3,2.76576817]
[1729596806838,3.7929,2636.5,2636.2,7.99576358]
[1729596807040,3.79319,2636.3,2636.2,7.99576358]
[1729596807640,3.79319,2636.3,2636.2,7.9964449]
[1729596808644,3.79319,2636.3,2636.2,5.22999541]
[1729596809575,8.326215,2636.3,2636.2,1.5]
[1729596810365,3.79377,2635.9,2635.8,2.76644949]
[1729596810562,3.79377,2635.9,2635.8,2.76912863]
[1729596811712,3.79377,2635.9,2635.7,3.59782863]
[1729596812643,3.79377,2635.9,2635.7,3.88035275]
[1729596812979,7.58767,2635.9,2635.7,1.11122412]
[1729596813481,3.79377,2635.9,2635.7,1.11122412]
[1729596813683,0.817,2635.8,2635.6,0.59392398]
[1729596813891,3.79405,2635.7,2635.6,0.59392398]
[1729596814180,3.79405,2635.7,2635.6,4.59392398]
[1729596814382,3.79405,2635.7,2635.6,0.59392398]
[1729596816396,3.79405,2635.7,2635.4,2.277]
[1729596816563,3.79422,2635.6,2635.4,2.277]
[1729596816973,7.58805,2635.8,2635.4,2.277]
[1729596817175,3.79417,2635.7,2635.4,1.5]
[1729596817959,3.79405,2635.7,2635.4,1.5]
[1729596818295,3.79415,2635.7,2635.4,1.5]
[1729596818791,3.79397,2635.8,2635.4,1.5]
[1729596818998,7.6112,2636.0,2635.6,4.5150263]
[1729596818999,3.7937,2636.0,2635.6,4.5150263]
[1729596819156,3.79349,2636.1,2635.6,8.3091963]
[1729596819450,0.8067,2636.3,2635.4,5.95987315]
[1729596819451,3.79326,2636.3,2635.8,7.4904063]
[1729596819655,3.79326,2636.3,2635.9,4.61216]
[1729596819901,3.79326,2636.3,2636.0,0.83846567]
[1729596820070,3.79294,2636.5,2636.1,0.8184]
[1729596820397,3.79269,2636.7,2636.1,4.61184]
[1729596820560,3.79288,2636.6,2636.1,4.61184]
[1729596820901,7.58539,2636.7,2636.1,3.58756641]
[1729596821086,3.79269,2636.7,2636.2,4.98494684]
[1729596821609,3.7922,2637.0,2636.5,7.4894963]
[1729596821754,3.79233,2636.9,2636.5,7.4894963]
[1729596821951,3.79233,2636.9,2636.5,3.79287]
[1729596822191,3.79233,2636.9,2636.6,0.15403879]
[1729596822391,7.58477,2636.9,2636.6,1.03056967]
[1729596822562,3.79233,2636.9,2636.6,1.03056967]
[1729596822891,3.79249,2636.8,2636.6,1.03056967]
[1729596823099,3.79261,2636.7,2636.6,5.03056967]
[1729596824197,3.79261,2636.7,2636.6,1.03056967]
[1729596824509,3.79261,2636.7,2636.6,0.15403879]
[1729596825009,3.79261,2636.7,2636.4,0.8184]
[1729596825180,3.79261,2636.7,2636.6,0.15403879]
[1729596827112,3.79261,2636.7,2636.6,4.15403879]
[1729596828635,3.79248,2636.8,2636.6,4.15403879]
[1729596828808,3.79261,2636.7,2636.6,4.15403879]
[1729596829005,4.551119,2636.7,2636.6,0.15403879]
[1729596829379,4.551119,2636.7,2636.4,0.8184]
[1729596829380,3.79286,2636.6,2636.4,0.8184]
[1729596829693,3.79286,2636.6,2636.5,4.0]
[1729596830291,3.79286,2636.6,2636.2,2.2559]
[1729596830292,3.79276,2636.6,2636.2,2.2559]
[1729596830498,3.79276,2636.6,2636.3,4.0]
[1729596831083,3.79256,2636.8,2636.3,4.0]
[1729596831278,0.7999,2637.6,2636.5,8.3005263]
[1729596831491,3.79212,2637.1,2636.5,12.3005263]
[1729596831734,3.79212,2637.1,2636.5,4.811]
[1729596831913,3.79226,2637.0,2636.5,4.811]
[1729596832303,3.7924,2636.9,2636.5,4.811]
[1729596832917,3.79219,2637.0,2636.5,4.88685188]
[1729596833129,3.79219,2637.0,2636.5,6.22574542]
[1729596833337,3.79229,2637.0,2636.5,6.14989354]
[1729596834616,3.79229,2637.0,2636.5,6.6020478]
[1729596834805,3.79213,2637.1,2636.5,6.6020478]
[1729596835004,3.79234,2636.9,2636.5,6.6020478]
[1729596836341,3.79276,2636.6,2636.5,5.26315426]
[1729596836537,3.79276,2636.6,2636.5,4.0]
[1729596836899,3.79276,2636.6,2636.5,4.15357703]
[1729596839002,3.79276,2636.6,2636.5,0.15357703]
[1729596839239,3.79276,2636.6,2636.3,4.0]
[1729596839398,3.79304,2636.5,2636.3,4.0]
[1729596840832,0.8309,2636.7,2636.3,4.0]
[1729596840833,3.79305,2636.4,2636.3,4.0]
[1729596842055,3.79292,2636.5,2636.3,4.0]
[1729596842208,3.79272,2636.7,2636.4,0.7993]
[1729596842547,7.46,2637.3,2636.8,0.7993]
[1729596842548,3.79189,2637.3,2636.8,0.7993]
[1729596842758,3.79189,2637.3,2636.8,1.70399467]
[1729596843054,3.7919,2637.2,2636.8,1.70399467]
[1729596843207,3.79189,2637.3,2636.8,1.70399222]
[1729596843407,3.79185,2637.3,2636.8,5.42054063]
[1729596843637,3.79162,2637.4,2636.9,3.79231]
[1729596843851,3.79155,2637.5,2637.1,0.8319]
[1729596844049,3.79128,2637.7,2637.1,4.62387]
[1729596844342,3.79128,2637.7,2637.2,7.4884863]
[1729596844527,3.79128,2637.7,2637.2,3.79186]
[1729596844846,7.58193,2637.9,2637.3,3.79171]
[1729596845017,7.58193,2637.9,2637.4,0.758357]
[1729596845219,3.7907,2638.1,2637.4,0.758357]
[1729596845427,3.79082,2638.0,2637.5,0.8096]
[1729596845828,3.79082,2638.0,2637.5,4.60106]
[1729596846219,3.7906,2638.1,2637.5,0.8096]
[1729596846220,3.79091,2637.9,2637.5,0.8096]
[1729596846629,3.79091,2637.9,2637.5,4.8096]
[1729596847267,7.58193,2637.9,2637.5,4.8096]
[1729596847468,7.58193,2637.9,2637.5,5.81972]
[1729596847624,3.79125,2637.7,2637.5,4.8096]
[1729596847822,3.79125,2637.7,2637.5,4.0]
[1729596848637,3.79132,2637.6,2637.5,4.0]
[1729596850933,3.79125,2637.7,2637.5,4.0]
[1729596851136,3.79098,2637.9,2637.6,0.7704]
[1729596851365,3.79069,2638.1,2637.7,0.47704]
[1729596851543,3.79084,2638.0,2637.7,0.47704]
[1729596851932,3.79118,2637.7,2637.6,0.7704]
[1729596852472,3.79118,2637.7,2637.6,4.7704]
[1729596853180,3.79118,2637.7,2637.6,4.0]
[1729596854282,3.79118,2637.7,2636.8,0.7802]
[1729596854283,3.7919,2637.2,2636.8,0.7802]
[1729596854577,3.79204,2637.1,2637.0,4.0]
[1729596855568,7.633624,2637.1,2637.0,4.0]
[1729596855779,8.183624,2637.1,2637.0,4.0]
[1729596856788,3.7929,2636.5,2636.4,1.5]
[1729596857090,3.7929,2636.5,2636.4,5.5]
[1729596857386,3.7929,2636.5,2636.4,5.6528383]
[1729596857741,3.0,2637.1,2636.4,6.29750213]
[1729596857948,3.79255,2636.8,2636.6,3.6966263]
[1729596858160,3.79255,2636.8,2636.7,0.7938]
[1729596858370,3.79255,2636.8,2636.7,0.9464281]
[1729596858879,3.79255,2636.8,2636.7,4.9464281]
[1729596859466,7.58477,2636.9,2636.7,4.9464281]
[1729596859776,3.79247,2636.8,2636.7,5.44107091]
[1729596860159,7.58424,2637.1,2636.7,5.44107091]
[1729596860466,7.58424,2637.1,2636.7,4.9464281]
[1729596860467,3.79243,2636.9,2636.7,4.9464281]
[1729596860874,3.79247,2636.8,2636.7,4.9464281]
[1729596861402,3.79243,2636.9,2636.7,4.9464281]
[1729596861403,7.58489,2636.9,2636.7,4.9464281]
[1729596862079,3.79162,2637.4,2636.8,3.6966263]
[1729596862288,3.79198,2637.2,2636.9,0.86430544]
[1729596862597,3.79198,2637.2,2636.9,1.01679344]
[1729596863172,3.79198,2637.2,2636.9,5.01679344]
[1729596863374,7.58398,2637.2,2636.9,5.01679344]
[1729596863616,3.79198,2637.2,2636.9,5.01679344]
[1729596863776,3.79198,2637.2,2637.0,0.50167934]
[1729596863971,3.79198,2637.2,2636.9,4.152488]
[1729596864175,3.79198,2637.2,2637.1,0.15268988]
[1729596864461,3.79204,2637.1,2637.0,0.15275992]
[1729596864720,3.79204,2637.1,2637.0,4.0]
[1729596865388,3.7919,2637.2,2637.0,4.0]
[1729596867227,3.7919,2637.2,2637.1,0.15268988]
[1729596868030,3.79204,2637.1,2636.7,0.7938]
[1729596868325,3.79204,2637.1,2636.8,1.1051086]
[1729596870080,3.79204,2637.1,2636.9,4.0]
[1729596873240,3.79185,2637.3,2636.9,4.0]
[1729596873401,3.792,2637.2,2636.9,4.0]
[1729596874100,3.79205,2637.1,2636.9,4.0]
[1729596874298,3.79185,2637.3,2636.9,4.96915186]
[1729596874495,3.79156,2637.5,2637.0,0.07584073]
[1729596874725,3.79156,2637.5,2637.1,0.8215]
[1729596875057,3.7919,2637.2,2637.1,0.8215]
[1729596875753,3.7919,2637.2,2637.1,4.8215]
[1729596876123,7.58345,2637.4,2637.1,4.8215]
[1729596876325,7.58343,2637.4,2637.1,4.8215]
[1729596876555,7.58339,2637.4,2637.1,5.40056519]
[1729596876872,3.79168,2637.4,2637.1,5.40056519]
[1729596877921,3.79176,2637.3,2637.1,5.40056519]
[1729596878131,3.7919,2637.2,2637.1,5.40056519]
[1729596878334,3.7919,2637.2,2637.1,4.8215]